[Event "Late Titled Tuesday Blitz February 8 2022"]
[White "Rorrer, Grayson"]
[Black "Borisova, Ekaterina"]
[WhiteFideId "30944996"]
[BlackFideId "34124184"]
[WhiteElo "2122"]
[BlackElo "2034"]
[Result "0-1"]
[Round "06"]
[TimeControl "180+1"]
[Date "2022.02.09"]
[WhiteClock "0:00:04"]
[BlackClock "0:00:03"]

1. e4 {[%clk 0:03:00]}  c6 {[%clk 0:02:58]} 2. d4 {[%clk 0:02:59]}  d5 {[%clk 0:02:59]} 3. exd5 {[%clk 0:02:59]}  cxd5 {[%clk 0:02:59]} 4. Bd3 {[%clk 0:03:00]}  Nc6 {[%clk 0:02:59]} 5. c3 {[%clk 0:03:00]}  Nf6 {[%clk 0:02:59]} 6. h3 {[%clk 0:03:00]}  g6 {[%clk 0:02:59]} 7. Nf3 {[%clk 0:03:00]}  Bf5 {[%clk 0:02:58]} 8. Ne5 {[%clk 0:03:01]}  Bxd3 {[%clk 0:02:56]} 9. Nxd3 {[%clk 0:03:02]}  Bg7 {[%clk 0:02:55]} 10. O-O {[%clk 0:03:02]}  O-O {[%clk 0:02:55]} 11. Bf4 {[%clk 0:03:03]}  Ne4 {[%clk 0:02:37]} 12. Nd2 {[%clk 0:03:02]}  Nxd2 {[%clk 0:02:32]} 13. Qxd2 {[%clk 0:03:03]}  Rc8 {[%clk 0:02:24]} 14. Rfe1 {[%clk 0:03:03]}  e6 {[%clk 0:02:23]} 15. g3 {[%clk 0:02:54]}  Na5 {[%clk 0:02:07]} 16. h4 {[%clk 0:02:46]}  Nc4 {[%clk 0:02:05]} 17. Qe2 {[%clk 0:02:46]}  h5 {[%clk 0:01:50]} 18. Kg2 {[%clk 0:02:41]}  Qf6 {[%clk 0:01:48]} 19. Nc5 {[%clk 0:02:36]}  Qe7 {[%clk 0:01:37]} 20. Bg5 {[%clk 0:02:26]}  Qc7 {[%clk 0:01:31]} 21. g4 {[%clk 0:02:23]}  hxg4 {[%clk 0:01:22]} 22. Qxg4 {[%clk 0:02:24]}  Nxb2 {[%clk 0:01:18]} 23. h5 {[%clk 0:02:17]}  gxh5 {[%clk 0:01:15]} 24. Qxh5 {[%clk 0:02:18]}  f6 {[%clk 0:00:34]} 25. Bc1 {[%clk 0:01:26]}  Nc4 {[%clk 0:00:13]} 26. Rh1 {[%clk 0:01:23]}  Rfe8 {[%clk 0:00:10]} 27. Qh7+ {[%clk 0:01:13]}  Kf8 {[%clk 0:00:10]} 28. Qg6 {[%clk 0:00:59]}  Qf7 {[%clk 0:00:10]} 29. Qg3 {[%clk 0:00:45]}  b6 {[%clk 0:00:08]} 30. Nd3 {[%clk 0:00:45]}  Ke7 {[%clk 0:00:08]} 31. Rh7 {[%clk 0:00:44]}  Rg8 {[%clk 0:00:07]} 32. Kf1 {[%clk 0:00:42]}  Kd8 {[%clk 0:00:05]} 33. Bh6 {[%clk 0:00:39]}  Rc7 {[%clk 0:00:04]} 34. Nf4 {[%clk 0:00:25]}  Kc8 {[%clk 0:00:03]} 35. Re1 {[%clk 0:00:13]}  Nd2+ {[%clk 0:00:03]} 36. Ke2 {[%clk 0:00:13]}  Ne4 {[%clk 0:00:04]} 37. Rxg7 {[%clk 0:00:10]}  Nxg3+ {[%clk 0:00:03]} 38. Rxg3 {[%clk 0:00:11]}  Rxg3 {[%clk 0:00:03]} 39. fxg3 {[%clk 0:00:11]}  Qh7 {[%clk 0:00:03]} 40. Rh1 {[%clk 0:00:11]}  Rxc3 {[%clk 0:00:03]} 41. Kf2 {[%clk 0:00:07]}  Qe4 {[%clk 0:00:03]} 42. Rf1 {[%clk 0:00:06]}  Rc2+ {[%clk 0:00:03]} 43. Kg1 {[%clk 0:00:06]}  Qxd4+ {[%clk 0:00:03]} 44. Kh1 {[%clk 0:00:06]}  Qe4+ {[%clk 0:00:03]} 45. Kg1 {[%clk 0:00:07]}  Qh7 {[%clk 0:00:04]} 46. Nxe6 {[%clk 0:00:03]}  Qxh6 {[%clk 0:00:03]} 47. Rf2 {[%clk 0:00:04]}  Qe3 {[%clk 0:00:03]} 0-1


[Site "https://www.chess.com"]

[Event "Late Titled Tuesday Blitz February 8 2022"]
[White "Rustemov, Alexander"]
[Black "Aradhya, Garg"]
[WhiteFideId "4119002"]
[BlackFideId "25006746"]
[WhiteElo "2818"]
[BlackElo "2169"]
[Result "1-0"]
[Round "06"]
[TimeControl "180+1"]
[Date "2022.02.08"]
[WhiteClock "0:01:58"]
[BlackClock "0:01:13"]

1. d4 {[%clk 0:03:00]}  d5 {[%clk 0:02:59]} 2. c4 {[%clk 0:03:01]}  c6 {[%clk 0:02:59]} 3. Nc3 {[%clk 0:03:01]}  Nf6 {[%clk 0:02:59]} 4. e3 {[%clk 0:03:02]}  e6 {[%clk 0:02:57]} 5. Nf3 {[%clk 0:03:02]}  Nbd7 {[%clk 0:02:56]} 6. Qc2 {[%clk 0:03:03]}  Bd6 {[%clk 0:02:56]} 7. Bd2 {[%clk 0:03:03]}  O-O {[%clk 0:02:56]} 8. O-O-O {[%clk 0:03:04]}  Qe7 {[%clk 0:02:56]} 9. Kb1 {[%clk 0:03:03]}  dxc4 {[%clk 0:02:55]} 10. Bxc4 {[%clk 0:03:03]}  b5 {[%clk 0:02:56]} 11. Bd3 {[%clk 0:03:01]}  a6 {[%clk 0:02:55]} 12. e4 {[%clk 0:03:01]}  e5 {[%clk 0:02:55]} 13. dxe5 {[%clk 0:03:02]}  Nxe5 {[%clk 0:02:55]} 14. Nxe5 {[%clk 0:03:02]}  Bxe5 {[%clk 0:02:55]} 15. f4 {[%clk 0:03:02]}  Bxc3 {[%clk 0:02:53]} 16. Bxc3 {[%clk 0:03:02]}  h6 {[%clk 0:02:41]} 17. Bd4 {[%clk 0:02:50]}  Rd8 {[%clk 0:02:38]} 18. Bc5 {[%clk 0:02:46]}  Qc7 {[%clk 0:02:38]} 19. e5 {[%clk 0:02:43]}  Nd5 {[%clk 0:02:38]} 20. g3 {[%clk 0:02:41]}  Bb7 {[%clk 0:02:16]} 21. Rc1 {[%clk 0:02:39]}  a5 {[%clk 0:02:12]} 22. Bd6 {[%clk 0:02:28]}  Qb6 {[%clk 0:02:08]} 23. Be4 {[%clk 0:02:19]}  Nb4 {[%clk 0:01:57]} 24. Qc5 {[%clk 0:02:16]}  Qxc5 {[%clk 0:01:55]} 25. Rxc5 {[%clk 0:02:16]}  Rac8 {[%clk 0:01:55]} 26. a3 {[%clk 0:02:13]}  Na6 {[%clk 0:01:54]} 27. Rc2 {[%clk 0:02:11]}  Ba8 {[%clk 0:01:34]} 28. Rhc1 {[%clk 0:02:09]}  c5 {[%clk 0:01:34]} 29. Bxa8 {[%clk 0:02:07]}  Rxa8 {[%clk 0:01:35]} 30. Bxc5 {[%clk 0:02:07]}  b4 {[%clk 0:01:28]} 31. Bd6 {[%clk 0:02:04]}  bxa3 {[%clk 0:01:27]} 32. bxa3 {[%clk 0:02:04]}  f6 {[%clk 0:01:27]} 33. Ka2 {[%clk 0:01:59]}  Rd7 {[%clk 0:01:19]} 34. Rc8+ {[%clk 0:01:58]}  Rxc8 {[%clk 0:01:18]} 35. Rxc8+ {[%clk 0:01:59]}  Kh7 {[%clk 0:01:13]} 36. Ra8 {[%clk 0:01:59]}  fxe5 {[%clk 0:01:13]} 37. fxe5 {[%clk 0:01:58]}  Nc7 {[%clk 0:01:13]} 38. Ra7 {[%clk 0:01:58]} 1-0


[Site "https://www.chess.com"]

[Event "Late Titled Tuesday Blitz February 8 2022"]
[White "Sjugirov, Sanan"]
[Black "Sarana, Alexey"]
[WhiteFideId "4189302"]
[BlackFideId "24133795"]
[WhiteElo "2602"]
[BlackElo "2665"]
[Result "1/2-1/2"]
[Round "06"]
[TimeControl "180+1"]
[Date "2022.02.08"]
[WhiteClock "0:00:06"]
[BlackClock "0:00:05"]

1. e4 {[%clk 0:02:57]}  c5 {[%clk 0:03:00]} 2. Nf3 {[%clk 0:02:57]}  d6 {[%clk 0:03:01]} 3. d4 {[%clk 0:02:52]}  cxd4 {[%clk 0:03:02]} 4. Nxd4 {[%clk 0:02:52]}  Nf6 {[%clk 0:03:02]} 5. Nc3 {[%clk 0:02:53]}  a6 {[%clk 0:03:03]} 6. Be3 {[%clk 0:02:53]}  e5 {[%clk 0:03:02]} 7. Nf3 {[%clk 0:02:54]}  Qc7 {[%clk 0:03:00]} 8. a4 {[%clk 0:02:53]}  Be7 {[%clk 0:03:00]} 9. Be2 {[%clk 0:02:53]}  O-O {[%clk 0:02:59]} 10. O-O {[%clk 0:02:52]}  Nbd7 {[%clk 0:02:59]} 11. Bg5 {[%clk 0:02:35]}  h6 {[%clk 0:02:52]} 12. Bh4 {[%clk 0:02:35]}  b6 {[%clk 0:02:48]} 13. Nd2 {[%clk 0:02:29]}  Bb7 {[%clk 0:02:47]} 14. Bc4 {[%clk 0:02:13]}  Rac8 {[%clk 0:02:25]} 15. Qe2 {[%clk 0:02:09]}  Nc5 {[%clk 0:01:59]} 16. Bxf6 {[%clk 0:02:08]}  Bxf6 {[%clk 0:02:00]} 17. Nd5 {[%clk 0:01:45]}  Qd8 {[%clk 0:02:00]} 18. c3 {[%clk 0:01:32]}  Bg5 {[%clk 0:01:50]} 19. Nf3 {[%clk 0:01:28]}  Ra8 {[%clk 0:01:36]} 20. Rfd1 {[%clk 0:01:26]}  Ne6 {[%clk 0:01:33]} 21. g3 {[%clk 0:01:23]}  Be7 {[%clk 0:01:30]} 22. Qe3 {[%clk 0:01:20]}  Nc5 {[%clk 0:01:27]} 23. b4 {[%clk 0:01:07]}  Nd7 {[%clk 0:01:27]} 24. a5 {[%clk 0:01:07]}  Rc8 {[%clk 0:01:16]} 25. Bb3 {[%clk 0:01:03]}  b5 {[%clk 0:01:15]} 26. Rac1 {[%clk 0:01:02]}  Nf6 {[%clk 0:01:05]} 27. Nxf6+ {[%clk 0:00:42]}  Bxf6 {[%clk 0:01:06]} 28. Bd5 {[%clk 0:00:34]}  Bxd5 {[%clk 0:01:06]} 29. Rxd5 {[%clk 0:00:35]}  Rc6 {[%clk 0:01:06]} 30. Rcd1 {[%clk 0:00:32]}  Qc7 {[%clk 0:01:06]} 31. R1d3 {[%clk 0:00:27]}  Rc8 {[%clk 0:01:06]} 32. Qd2 {[%clk 0:00:21]}  Be7 {[%clk 0:00:40]} 33. Nxe5 {[%clk 0:00:20]}  Rxc3 {[%clk 0:00:40]} 34. Rxc3 {[%clk 0:00:04]}  Qxc3 {[%clk 0:00:41]} 35. Qxc3 {[%clk 0:00:05]}  Rxc3 {[%clk 0:00:41]} 36. Nd3 {[%clk 0:00:06]}  Kf8 {[%clk 0:00:37]} 37. Kg2 {[%clk 0:00:06]}  Ke8 {[%clk 0:00:36]} 38. h4 {[%clk 0:00:06]}  g6 {[%clk 0:00:32]} 39. f4 {[%clk 0:00:05]}  h5 {[%clk 0:00:30]} 40. Kf3 {[%clk 0:00:05]}  Kd7 {[%clk 0:00:30]} 41. Ke3 {[%clk 0:00:05]}  Kc6 {[%clk 0:00:25]} 42. Kd2 {[%clk 0:00:05]}  Rc4 {[%clk 0:00:22]} 43. Ke3 {[%clk 0:00:05]}  Rc2 {[%clk 0:00:21]} 44. Rd4 {[%clk 0:00:04]}  Bf6 {[%clk 0:00:17]} 45. e5 {[%clk 0:00:03]}  Be7 {[%clk 0:00:17]} 46. exd6 {[%clk 0:00:02]}  Bxd6 {[%clk 0:00:18]} 47. Re4 {[%clk 0:00:03]}  Rc3 {[%clk 0:00:16]} 48. Kd2 {[%clk 0:00:03]}  Rb3 {[%clk 0:00:15]} 49. Kc2 {[%clk 0:00:03]}  Ra3 {[%clk 0:00:15]} 50. Re8 {[%clk 0:00:02]}  Ra2+ {[%clk 0:00:14]} 51. Kc3 {[%clk 0:00:02]}  Rg2 {[%clk 0:00:13]} 52. Re3 {[%clk 0:00:02]}  f6 {[%clk 0:00:11]} 53. Re6 {[%clk 0:00:01]}  Rxg3 {[%clk 0:00:10]} 54. Rxf6 {[%clk 0:00:02]}  Kd5 {[%clk 0:00:10]} 55. Rf7 {[%clk 0:00:02]}  Ke4 {[%clk 0:00:10]} 56. Ra7 {[%clk 0:00:02]}  Rxd3+ {[%clk 0:00:10]} 57. Kc2 {[%clk 0:00:02]}  Bxb4 {[%clk 0:00:10]} 58. Rxa6 {[%clk 0:00:03]}  Ra3 {[%clk 0:00:10]} 59. Rxg6 {[%clk 0:00:03]}  Rxa5 {[%clk 0:00:10]} 60. Kb3 {[%clk 0:00:04]}  Bd2 {[%clk 0:00:10]} 61. Rg5 {[%clk 0:00:05]}  Ra8 {[%clk 0:00:05]} 62. Rxb5 {[%clk 0:00:04]}  Rh8 {[%clk 0:00:05]} 63. f5 {[%clk 0:00:04]}  Bh6 {[%clk 0:00:02]} 64. f6 {[%clk 0:00:04]}  Bf8 {[%clk 0:00:03]} 65. Kc4 {[%clk 0:00:05]}  Kf4 {[%clk 0:00:03]} 66. Kd5 {[%clk 0:00:04]}  Kg4 {[%clk 0:00:04]} 67. Ke6 {[%clk 0:00:05]}  Rh7 {[%clk 0:00:04]} 68. Rb8 {[%clk 0:00:04]}  Ba3 {[%clk 0:00:05]} 69. Rb3 {[%clk 0:00:04]}  Bf8 {[%clk 0:00:04]} 70. Rb8 {[%clk 0:00:04]}  Bh6 {[%clk 0:00:05]} 71. Rg8+ {[%clk 0:00:03]}  Kxh4 {[%clk 0:00:05]} 72. Kf5 {[%clk 0:00:04]}  Ra7 {[%clk 0:00:05]} 73. Kg6 {[%clk 0:00:03]}  Bc1 {[%clk 0:00:05]} 74. Rh8 {[%clk 0:00:03]}  Kg4 {[%clk 0:00:05]} 75. Rxh5 {[%clk 0:00:03]}  Ra6 {[%clk 0:00:06]} 76. Rd5 {[%clk 0:00:03]}  Bb2 {[%clk 0:00:06]} 77. Rg5+ {[%clk 0:00:03]}  Kf4 {[%clk 0:00:07]} 78. Rf5+ {[%clk 0:00:04]}  Ke4 {[%clk 0:00:07]} 79. Rf2 {[%clk 0:00:05]}  Bd4 {[%clk 0:00:07]} 80. Rf1 {[%clk 0:00:05]}  Ke5 {[%clk 0:00:07]} 81. Kg5 {[%clk 0:00:04]}  Be3+ {[%clk 0:00:04]} 82. Kg6 {[%clk 0:00:04]}  Bc5 {[%clk 0:00:04]} 83. Kg7 {[%clk 0:00:04]}  Ra8 {[%clk 0:00:02]} 84. f7 {[%clk 0:00:04]}  Bf8+ {[%clk 0:00:02]} 85. Kg6 {[%clk 0:00:04]}  Ke6 {[%clk 0:00:03]} 86. Re1+ {[%clk 0:00:04]}  Kd7 {[%clk 0:00:04]} 87. Re8 {[%clk 0:00:04]}  Ra6+ {[%clk 0:00:04]} 88. Kh7 {[%clk 0:00:04]}  Rh6+ {[%clk 0:00:04]} 89. Kg8 {[%clk 0:00:05]}  Bd6 {[%clk 0:00:03]} 90. f8=Q {[%clk 0:00:05]}  Rg6+ {[%clk 0:00:03]} 91. Kf7 {[%clk 0:00:05]}  Bxf8 {[%clk 0:00:03]} 92. Rxf8 {[%clk 0:00:05]}  Rg1 {[%clk 0:00:03]} 93. Rg8 {[%clk 0:00:06]}  Rf1+ {[%clk 0:00:04]} 94. Kg7 {[%clk 0:00:06]}  Rg1+ {[%clk 0:00:05]} 95. Kf7 {[%clk 0:00:06]}  Rxg8 {[%clk 0:00:05]} 96. Kxg8 {[%clk 0:00:06]} 1/2-1/2


[Site "https://www.chess.com"]

[Event "Late Titled Tuesday Blitz February 8 2022"]
[White "Timofeev, Artyom"]
[Black "Plotkin, Mark"]
[WhiteFideId "4140419"]
[BlackFideId "2611651"]
[WhiteElo "2583"]
[BlackElo "2178"]
[Result "1/2-1/2"]
[Round "06"]
[TimeControl "180+1"]
[Date "2022.02.08"]
[WhiteClock "0:00:11"]
[BlackClock "0:00:38"]

1. d4 {[%clk 0:03:00]}  Nf6 {[%clk 0:02:56]} 2. Nf3 {[%clk 0:03:00]}  g6 {[%clk 0:02:57]} 3. Nbd2 {[%clk 0:02:59]}  d6 {[%clk 0:02:54]} 4. e4 {[%clk 0:02:58]}  Bg7 {[%clk 0:02:54]} 5. Bd3 {[%clk 0:02:57]}  O-O {[%clk 0:02:54]} 6. O-O {[%clk 0:02:57]}  Nc6 {[%clk 0:02:55]} 7. c3 {[%clk 0:02:56]}  e5 {[%clk 0:02:55]} 8. Re1 {[%clk 0:02:56]}  Re8 {[%clk 0:02:53]} 9. h3 {[%clk 0:02:55]}  Bd7 {[%clk 0:02:53]} 10. Bf1 {[%clk 0:02:53]}  a5 {[%clk 0:02:51]} 11. a3 {[%clk 0:02:45]}  a4 {[%clk 0:02:47]} 12. Bd3 {[%clk 0:02:34]}  Nh5 {[%clk 0:02:23]} 13. dxe5 {[%clk 0:02:23]}  Nf4 {[%clk 0:02:22]} 14. Nc4 {[%clk 0:02:18]}  Nxd3 {[%clk 0:02:19]} 15. Qxd3 {[%clk 0:02:18]}  b5 {[%clk 0:02:12]} 16. Ne3 {[%clk 0:02:12]}  Nxe5 {[%clk 0:02:05]} 17. Nxe5 {[%clk 0:02:12]}  Bxe5 {[%clk 0:02:02]} 18. Bd2 {[%clk 0:01:54]}  Qh4 {[%clk 0:02:01]} 19. Nd5 {[%clk 0:01:50]}  Rac8 {[%clk 0:01:52]} 20. Rad1 {[%clk 0:01:44]}  Be6 {[%clk 0:01:41]} 21. Bc1 {[%clk 0:01:18]}  c6 {[%clk 0:01:39]} 22. Ne3 {[%clk 0:01:12]}  Bb3 {[%clk 0:01:38]} 23. Rd2 {[%clk 0:01:12]}  h5 {[%clk 0:01:33]} 24. Rde2 {[%clk 0:01:03]}  Rcd8 {[%clk 0:01:30]} 25. c4 {[%clk 0:01:02]}  d5 {[%clk 0:01:26]} 26. cxd5 {[%clk 0:00:54]}  cxd5 {[%clk 0:01:23]} 27. exd5 {[%clk 0:00:53]}  Bd4 {[%clk 0:01:07]} 28. Qxb5 {[%clk 0:00:48]}  Re4 {[%clk 0:00:42]} 29. Qd3 {[%clk 0:00:38]}  Rde8 {[%clk 0:00:40]} 30. d6 {[%clk 0:00:37]}  Qd8 {[%clk 0:00:32]} 31. Bd2 {[%clk 0:00:35]}  Qxd6 {[%clk 0:00:28]} 32. Bc3 {[%clk 0:00:35]}  Bc5 {[%clk 0:00:22]} 33. Qxd6 {[%clk 0:00:34]}  Bxd6 {[%clk 0:00:23]} 34. Rd2 {[%clk 0:00:22]}  Bc5 {[%clk 0:00:23]} 35. g3 {[%clk 0:00:14]}  f5 {[%clk 0:00:20]} 36. Kg2 {[%clk 0:00:13]}  Bxe3 {[%clk 0:00:19]} 37. Rxe3 {[%clk 0:00:12]}  Rxe3 {[%clk 0:00:20]} 38. fxe3 {[%clk 0:00:12]}  Rxe3 {[%clk 0:00:21]} 39. Rd7 {[%clk 0:00:12]}  Re6 {[%clk 0:00:16]} 40. Kf2 {[%clk 0:00:11]}  Kf8 {[%clk 0:00:16]} 41. h4 {[%clk 0:00:11]}  Ke8 {[%clk 0:00:17]} 42. Rb7 {[%clk 0:00:11]}  Re4 {[%clk 0:00:15]} 43. Rg7 {[%clk 0:00:09]}  Rg4 {[%clk 0:00:14]} 44. Bf6 {[%clk 0:00:09]}  Bf7 {[%clk 0:00:13]} 45. Be5 {[%clk 0:00:06]}  Re4 {[%clk 0:00:12]} 46. Bc3 {[%clk 0:00:06]}  f4 {[%clk 0:00:07]} 47. Bf6 {[%clk 0:00:02]}  Rc4 {[%clk 0:00:05]} 48. Kf3 {[%clk 0:00:01]}  Bd5+ {[%clk 0:00:05]} 49. Kf2 {[%clk 0:00:01]}  Rc2+ {[%clk 0:00:05]} 50. Ke1 {[%clk 0:00:02]}  fxg3 {[%clk 0:00:05]} 51. Rxg6 {[%clk 0:00:02]}  g2 {[%clk 0:00:04]} 52. Bd4 {[%clk 0:00:02]}  Rc1+ {[%clk 0:00:03]} 53. Kd2 {[%clk 0:00:02]}  Rf1 {[%clk 0:00:03]} 54. Kc3 {[%clk 0:00:02]}  Kd7 {[%clk 0:00:03]} 55. Kb4 {[%clk 0:00:02]}  Be4 {[%clk 0:00:04]} 56. Rg5 {[%clk 0:00:01]}  Rf4 {[%clk 0:00:04]} 57. Kc5 {[%clk 0:00:01]}  Bf3 {[%clk 0:00:03]} 58. Rg7+ {[%clk 0:00:02]}  Ke6 {[%clk 0:00:03]} 59. Rg3 {[%clk 0:00:03]}  Be4 {[%clk 0:00:02]} 60. Bg1 {[%clk 0:00:03]}  Rxh4 {[%clk 0:00:02]} 61. Bf2 {[%clk 0:00:02]}  Kf5 {[%clk 0:00:03]} 62. Rg8 {[%clk 0:00:01]}  Rg4 {[%clk 0:00:03]} 63. Rf8+ {[%clk 0:00:02]}  Ke6 {[%clk 0:00:03]} 64. Bg1 {[%clk 0:00:02]}  Rg5+ {[%clk 0:00:04]} 65. Kd4 {[%clk 0:00:02]}  Bc2 {[%clk 0:00:04]} 66. Rh8 {[%clk 0:00:02]}  Rg4+ {[%clk 0:00:04]} 67. Kc3 {[%clk 0:00:02]}  Bg6 {[%clk 0:00:03]} 68. Rf8 {[%clk 0:00:02]}  h4 {[%clk 0:00:03]} 69. Rf3 {[%clk 0:00:02]}  Kd5 {[%clk 0:00:03]} 70. Re3 {[%clk 0:00:02]}  Rc4+ {[%clk 0:00:04]} 71. Kd2 {[%clk 0:00:03]}  Rc2+ {[%clk 0:00:04]} 72. Ke1 {[%clk 0:00:03]}  Rc1+ {[%clk 0:00:05]} 73. Kf2 {[%clk 0:00:04]}  Be4 {[%clk 0:00:05]} 74. Re1 {[%clk 0:00:04]}  Rc2+ {[%clk 0:00:05]} 75. Re2 {[%clk 0:00:05]}  Rxe2+ {[%clk 0:00:05]} 76. Kxe2 {[%clk 0:00:05]}  h3 {[%clk 0:00:06]} 77. Kf2 {[%clk 0:00:05]}  Bf5 {[%clk 0:00:06]} 78. Kg3 {[%clk 0:00:05]}  Kc4 {[%clk 0:00:06]} 79. Kh2 {[%clk 0:00:06]}  Bd7 {[%clk 0:00:06]} 80. Be3 {[%clk 0:00:06]}  Kd3 {[%clk 0:00:07]} 81. Bf2 {[%clk 0:00:06]}  Ke2 {[%clk 0:00:07]} 82. Bg1 {[%clk 0:00:07]}  Kf3 {[%clk 0:00:08]} 83. Bd4 {[%clk 0:00:07]}  Bc8 {[%clk 0:00:08]} 84. Bg1 {[%clk 0:00:07]}  Bb7 {[%clk 0:00:09]} 85. Bd4 {[%clk 0:00:07]}  Bc8 {[%clk 0:00:10]} 86. Bg1 {[%clk 0:00:07]}  Bg4 {[%clk 0:00:11]} 87. Bd4 {[%clk 0:00:07]}  Ke2 {[%clk 0:00:12]} 88. Bg1 {[%clk 0:00:07]}  Kd3 {[%clk 0:00:12]} 89. Bc5 {[%clk 0:00:07]}  Kc2 {[%clk 0:00:13]} 90. Bd4 {[%clk 0:00:07]}  Kb3 {[%clk 0:00:14]} 91. Kg1 {[%clk 0:00:07]}  Bc8 {[%clk 0:00:15]} 92. Bc3 {[%clk 0:00:07]}  Kc4 {[%clk 0:00:16]} 93. Be5 {[%clk 0:00:07]}  Kd3 {[%clk 0:00:16]} 94. Bc3 {[%clk 0:00:07]}  Ke2 {[%clk 0:00:17]} 95. Kh2 {[%clk 0:00:06]}  Kf1 {[%clk 0:00:17]} 96. Bd4 {[%clk 0:00:06]}  Bg4 {[%clk 0:00:18]} 97. Bg1 {[%clk 0:00:06]}  Be2 {[%clk 0:00:19]} 98. Bd4 {[%clk 0:00:07]}  Bc4 {[%clk 0:00:20]} 99. Bg1 {[%clk 0:00:07]}  Bb3 {[%clk 0:00:20]} 100. Bd4 {[%clk 0:00:07]}  Be6 {[%clk 0:00:21]} 101. Bg1 {[%clk 0:00:08]}  Ke2 {[%clk 0:00:21]} 102. Bd4 {[%clk 0:00:08]}  Kd3 {[%clk 0:00:22]} 103. Bf6 {[%clk 0:00:07]}  Kd2 {[%clk 0:00:22]} 104. Bg7 {[%clk 0:00:08]}  Ke3 {[%clk 0:00:23]} 105. Bf6 {[%clk 0:00:07]}  Kf2 {[%clk 0:00:24]} 106. Bd4+ {[%clk 0:00:07]}  Kf1 {[%clk 0:00:25]} 107. Bg1 {[%clk 0:00:07]}  Bg4 {[%clk 0:00:24]} 108. Bd4 {[%clk 0:00:07]}  Bc8 {[%clk 0:00:24]} 109. Bg1 {[%clk 0:00:07]}  Bb7 {[%clk 0:00:25]} 110. Bd4 {[%clk 0:00:07]}  Bd5 {[%clk 0:00:25]} 111. Bg1 {[%clk 0:00:08]}  Bb3 {[%clk 0:00:26]} 112. Bd4 {[%clk 0:00:08]}  Bd1 {[%clk 0:00:27]} 113. Bg1 {[%clk 0:00:08]}  Bh5 {[%clk 0:00:28]} 114. Bd4 {[%clk 0:00:08]}  Be8 {[%clk 0:00:29]} 115. Bg1 {[%clk 0:00:08]}  Bd7 {[%clk 0:00:30]} 116. Bd4 {[%clk 0:00:08]}  Ke2 {[%clk 0:00:31]} 117. Bg1 {[%clk 0:00:08]}  Kd3 {[%clk 0:00:32]} 118. Bc5 {[%clk 0:00:08]}  Kc4 {[%clk 0:00:32]} 119. Bg1 {[%clk 0:00:08]}  Kd5 {[%clk 0:00:32]} 120. Bf2 {[%clk 0:00:08]}  Ke6 {[%clk 0:00:33]} 121. Bg1 {[%clk 0:00:08]}  Kf7 {[%clk 0:00:33]} 122. Bd4 {[%clk 0:00:08]}  Kg8 {[%clk 0:00:34]} 123. Bg1 {[%clk 0:00:09]}  Kh7 {[%clk 0:00:35]} 124. Bf2 {[%clk 0:00:09]}  Kg6 {[%clk 0:00:36]} 125. Bg1 {[%clk 0:00:10]}  Kh5 {[%clk 0:00:37]} 126. Bf2 {[%clk 0:00:11]}  Kg4 {[%clk 0:00:38]} 1/2-1/2


[Site "https://www.chess.com"]

[Event "Late Titled Tuesday Blitz February 8 2022"]
[White "Triapishko, Alexandr"]
[Black "Howell, David W L"]
[WhiteFideId "14122286"]
[BlackFideId "410608"]
[WhiteElo "2479"]
[BlackElo "2559"]
[Result "1/2-1/2"]
[Round "06"]
[TimeControl "180+1"]
[Date "2022.02.08"]
[WhiteClock "0:00:03"]
[BlackClock "0:00:36"]

1. Nf3 {[%clk 0:03:00]}  f5 {[%clk 0:02:49]} 2. g3 {[%clk 0:02:58]}  Nf6 {[%clk 0:02:49]} 3. Bg2 {[%clk 0:02:59]}  d6 {[%clk 0:02:49]} 4. d4 {[%clk 0:02:59]}  g6 {[%clk 0:02:48]} 5. O-O {[%clk 0:02:59]}  Bg7 {[%clk 0:02:48]} 6. c4 {[%clk 0:03:00]}  O-O {[%clk 0:02:48]} 7. Nc3 {[%clk 0:03:01]}  c6 {[%clk 0:02:48]} 8. d5 {[%clk 0:02:55]}  Na6 {[%clk 0:02:40]} 9. Nd4 {[%clk 0:02:53]}  e5 {[%clk 0:02:32]} 10. dxe6 {[%clk 0:02:37]}  Nc5 {[%clk 0:02:22]} 11. b3 {[%clk 0:02:32]}  Nxe6 {[%clk 0:02:18]} 12. Nxe6 {[%clk 0:02:26]}  Bxe6 {[%clk 0:02:19]} 13. Ba3 {[%clk 0:02:26]}  Ne8 {[%clk 0:02:12]} 14. Rc1 {[%clk 0:02:25]}  f4 {[%clk 0:02:04]} 15. Qd2 {[%clk 0:02:14]}  Qa5 {[%clk 0:01:54]} 16. Bb2 {[%clk 0:01:58]}  fxg3 {[%clk 0:01:54]} 17. hxg3 {[%clk 0:01:57]}  Rd8 {[%clk 0:01:55]} 18. Rfd1 {[%clk 0:01:52]}  Nf6 {[%clk 0:01:52]} 19. Nd5 {[%clk 0:01:19]}  Qxd2 {[%clk 0:01:50]} 20. Nxf6+ {[%clk 0:01:20]}  Bxf6 {[%clk 0:01:50]} 21. Rxd2 {[%clk 0:01:21]}  Bxb2 {[%clk 0:01:40]} 22. Rxb2 {[%clk 0:01:21]}  d5 {[%clk 0:01:40]} 23. cxd5 {[%clk 0:01:14]}  Bxd5 {[%clk 0:01:41]} 24. b4 {[%clk 0:01:00]}  Bxg2 {[%clk 0:01:29]} 25. Kxg2 {[%clk 0:01:01]}  Rd7 {[%clk 0:01:27]} 26. a4 {[%clk 0:00:59]}  Kf7 {[%clk 0:01:23]} 27. b5 {[%clk 0:00:58]}  cxb5 {[%clk 0:01:19]} 28. axb5 {[%clk 0:00:54]}  Re8 {[%clk 0:01:20]} 29. e3 {[%clk 0:00:49]}  Re5 {[%clk 0:01:17]} 30. Ra1 {[%clk 0:00:46]}  b6 {[%clk 0:01:16]} 31. Rba2 {[%clk 0:00:37]}  h5 {[%clk 0:01:16]} 32. Rxa7 {[%clk 0:00:37]}  Rxa7 {[%clk 0:01:16]} 33. Rxa7+ {[%clk 0:00:38]}  Kf6 {[%clk 0:01:17]} 34. Rb7 {[%clk 0:00:35]}  Rxb5 {[%clk 0:01:15]} 35. f4 {[%clk 0:00:36]}  g5 {[%clk 0:01:08]} 36. Kf3 {[%clk 0:00:17]}  Rb4 {[%clk 0:01:02]} 37. Rh7 {[%clk 0:00:09]}  Kg6 {[%clk 0:00:57]} 38. Rh8 {[%clk 0:00:09]}  g4+ {[%clk 0:00:55]} 39. Ke2 {[%clk 0:00:05]}  Rb2+ {[%clk 0:00:56]} 40. Kf1 {[%clk 0:00:05]}  Kf5 {[%clk 0:00:48]} 41. Re8 {[%clk 0:00:03]}  b5 {[%clk 0:00:43]} 42. Re5+ {[%clk 0:00:03]}  Kg6 {[%clk 0:00:41]} 43. Rg5+ {[%clk 0:00:03]}  Kh6 {[%clk 0:00:37]} 44. e4 {[%clk 0:00:04]}  Rb3 {[%clk 0:00:34]} 45. Kf2 {[%clk 0:00:02]}  Rb2+ {[%clk 0:00:34]} 46. Kf1 {[%clk 0:00:02]}  Rb3 {[%clk 0:00:35]} 47. Kf2 {[%clk 0:00:03]}  Rb2+ {[%clk 0:00:36]} 48. Kf1 {[%clk 0:00:03]} 1/2-1/2


[Site "https://www.chess.com"]